[Event "Titled Tuesday Blitz June 21 Late 2022"]
[White "Romero Ruscalleda, Josep"]
[Black "Roque Sola, Jose Luis"]
[WhiteFideId "2231859"]
[BlackFideId "5120390"]
[WhiteElo "2373"]
[BlackElo "1983"]
[Result "1-0"]
[Round "03"]
[TimeControl "180+1"]
[Date "2022.06.22"]
[WhiteClock "0:01:37"]
[BlackClock "0:00:06"]

1. e4 {[%clk 0:03:00]}  e6 {[%clk 0:03:00]} 2. d4 {[%clk 0:03:00]}  d5 {[%clk 0:03:00]} 3. e5 {[%clk 0:03:01]}  c5 {[%clk 0:03:00]} 4. c3 {[%clk 0:03:01]}  Nc6 {[%clk 0:03:00]} 5. Be3 {[%clk 0:03:01]}  cxd4 {[%clk 0:02:54]} 6. cxd4 {[%clk 0:03:01]}  Nge7 {[%clk 0:02:54]} 7. Nc3 {[%clk 0:03:00]}  Nf5 {[%clk 0:02:53]} 8. Nf3 {[%clk 0:03:00]}  Be7 {[%clk 0:02:52]} 9. Qd2 {[%clk 0:03:00]}  a6 {[%clk 0:02:47]} 10. Rc1 {[%clk 0:02:57]}  Bd7 {[%clk 0:02:46]} 11. Bd3 {[%clk 0:02:57]}  Nxe3 {[%clk 0:02:45]} 12. fxe3 {[%clk 0:02:57]}  Rc8 {[%clk 0:02:44]} 13. O-O {[%clk 0:02:55]}  b5 {[%clk 0:02:41]} 14. Qf2 {[%clk 0:02:51]}  Na5 {[%clk 0:02:23]} 15. Ng5 {[%clk 0:02:47]}  f6 {[%clk 0:02:09]} 16. Nxh7 {[%clk 0:02:40]}  f5 {[%clk 0:02:04]} 17. Qg3 {[%clk 0:02:28]}  Kf7 {[%clk 0:01:29]} 18. Nxd5 {[%clk 0:02:18]}  Rxh7 {[%clk 0:01:15]} 19. Rxc8 {[%clk 0:02:14]}  Bxc8 {[%clk 0:01:12]} 20. Nf4 {[%clk 0:02:07]}  Bg5 {[%clk 0:01:05]} 21. Nxe6 {[%clk 0:02:00]}  Bxe6 {[%clk 0:00:59]} 22. Bxf5 {[%clk 0:02:00]}  Bxf5 {[%clk 0:00:52]} 23. Rxf5+ {[%clk 0:01:59]}  Bf6 {[%clk 0:00:19]} 24. exf6 {[%clk 0:01:46]}  gxf6 {[%clk 0:00:20]} 25. h3 {[%clk 0:01:41]}  Qe7 {[%clk 0:00:19]} 26. Rc5 {[%clk 0:01:39]}  Kf8 {[%clk 0:00:06]} 27. Rc8+ {[%clk 0:01:37]}  Kf7 {[%clk 0:00:06]} 28. Rc7 {[%clk 0:01:37]} 1-0


[Site "https://www.chess.com"]

[Event "Titled Tuesday Blitz June 21 Late 2022"]
[White "Roque Sola, Gisela"]
[Black "Gaisinsky, Adam"]
[WhiteFideId "5120241"]
[BlackFideId "2620561"]
[WhiteElo "1863"]
[BlackElo "1965"]
[Result "0-1"]
[Round "03"]
[TimeControl "180+1"]
[Date "2022.06.22"]
[WhiteClock "0:00:10"]
[BlackClock "0:00:08"]

1. c4 {[%clk 0:03:00]}  Nf6 {[%clk 0:02:57]} 2. g3 {[%clk 0:03:01]}  e6 {[%clk 0:02:57]} 3. Bg2 {[%clk 0:03:01]}  d5 {[%clk 0:02:58]} 4. Nf3 {[%clk 0:02:59]}  d4 {[%clk 0:02:56]} 5. d3 {[%clk 0:02:57]}  c5 {[%clk 0:02:56]} 6. O-O {[%clk 0:02:58]}  Nc6 {[%clk 0:02:56]} 7. a3 {[%clk 0:02:55]}  Bd6 {[%clk 0:02:46]} 8. e3 {[%clk 0:02:49]}  e5 {[%clk 0:02:37]} 9. e4 {[%clk 0:02:47]}  h6 {[%clk 0:02:35]} 10. Ne1 {[%clk 0:02:44]}  g5 {[%clk 0:02:26]} 11. Nc2 {[%clk 0:02:35]}  Be6 {[%clk 0:02:16]} 12. Nd2 {[%clk 0:02:18]}  Qd7 {[%clk 0:02:09]} 13. Rb1 {[%clk 0:01:57]}  a5 {[%clk 0:02:07]} 14. b3 {[%clk 0:01:47]}  Bh3 {[%clk 0:02:03]} 15. Ne1 {[%clk 0:01:42]}  Bg4 {[%clk 0:01:03]} 16. f3 {[%clk 0:01:34]}  Bh3 {[%clk 0:01:01]} 17. Qe2 {[%clk 0:01:28]}  O-O-O {[%clk 0:00:59]} 18. Nc2 {[%clk 0:01:19]}  Rdg8 {[%clk 0:00:56]} 19. Bxh3 {[%clk 0:01:07]}  Qxh3 {[%clk 0:00:53]} 20. Qg2 {[%clk 0:01:07]}  Qe6 {[%clk 0:00:49]} 21. b4 {[%clk 0:00:58]}  axb4 {[%clk 0:00:46]} 22. axb4 {[%clk 0:00:59]}  cxb4 {[%clk 0:00:42]} 23. Nb3 {[%clk 0:00:54]}  Qe7 {[%clk 0:00:37]} 24. Ra1 {[%clk 0:00:51]}  Kc7 {[%clk 0:00:34]} 25. Bd2 {[%clk 0:00:48]}  Ra8 {[%clk 0:00:32]} 26. Qe2 {[%clk 0:00:34]}  Nd7 {[%clk 0:00:28]} 27. Rfb1 {[%clk 0:00:31]}  Nb6 {[%clk 0:00:17]} 28. Qe1 {[%clk 0:00:28]}  Na4 {[%clk 0:00:13]} 29. Nc1 {[%clk 0:00:19]}  Nc3 {[%clk 0:00:13]} 30. Bxc3 {[%clk 0:00:16]}  dxc3 {[%clk 0:00:13]} 31. Nb3 {[%clk 0:00:14]}  Bc5+ {[%clk 0:00:12]} 32. Nxc5 {[%clk 0:00:12]}  Qxc5+ {[%clk 0:00:13]} 33. Kg2 {[%clk 0:00:12]}  Rxa1 {[%clk 0:00:11]} 34. Rxa1 {[%clk 0:00:12]}  b3 {[%clk 0:00:10]} 35. Qxc3 {[%clk 0:00:12]}  bxc2 {[%clk 0:00:10]} 36. Qxc2 {[%clk 0:00:13]}  Rd8 {[%clk 0:00:08]} 37. Qc3 {[%clk 0:00:12]}  Qd4 {[%clk 0:00:08]} 38. Qxd4 {[%clk 0:00:11]}  Rxd4 {[%clk 0:00:09]} 39. Ra3 {[%clk 0:00:11]}  Nb4 {[%clk 0:00:09]} 40. Kf2 {[%clk 0:00:11]}  Nxd3+ {[%clk 0:00:08]} 41. Ke3 {[%clk 0:00:11]}  Nb2 {[%clk 0:00:08]} 42. Ra5 {[%clk 0:00:10]}  Nxc4+ {[%clk 0:00:08]} 0-1


[Site "https://www.chess.com"]

[Event "Titled Tuesday Blitz June 21 Late 2022"]
[White "Sanchez, Robert"]
[Black "Colpe, Malte"]
[WhiteFideId "2034360"]
[BlackFideId "24623075"]
[WhiteElo "2017"]
[BlackElo "2328"]
[Result "0-1"]
[Round "03"]
[TimeControl "180+1"]
[Date "2022.06.22"]
[WhiteClock "0:00:04"]
[BlackClock "0:00:01"]

1. e4 {[%clk 0:03:00]}  c5 {[%clk 0:02:58]} 2. Nf3 {[%clk 0:03:01]}  Nc6 {[%clk 0:02:57]} 3. d4 {[%clk 0:03:01]}  cxd4 {[%clk 0:02:57]} 4. Nxd4 {[%clk 0:03:02]}  g6 {[%clk 0:02:57]} 5. c4 {[%clk 0:02:57]}  Bg7 {[%clk 0:02:56]} 6. Nc2 {[%clk 0:02:57]}  e6 {[%clk 0:02:52]} 7. Nc3 {[%clk 0:02:56]}  Bxc3+ {[%clk 0:02:44]} 8. bxc3 {[%clk 0:02:57]}  Qa5 {[%clk 0:02:36]} 9. Qd2 {[%clk 0:02:52]}  d6 {[%clk 0:02:25]} 10. Ba3 {[%clk 0:02:45]}  Nf6 {[%clk 0:02:18]} 11. Bd3 {[%clk 0:02:10]}  Qc7 {[%clk 0:01:55]} 12. Qh6 {[%clk 0:02:02]}  Ne5 {[%clk 0:01:46]} 13. Be2 {[%clk 0:02:01]}  Nfd7 {[%clk 0:01:08]} 14. O-O {[%clk 0:01:42]}  Nc5 {[%clk 0:01:01]} 15. f3 {[%clk 0:01:12]}  Bd7 {[%clk 0:01:00]} 16. Rfd1 {[%clk 0:01:04]}  O-O-O {[%clk 0:00:58]} 17. Nd4 {[%clk 0:01:02]}  a6 {[%clk 0:00:56]} 18. Nb3 {[%clk 0:00:53]}  Ba4 {[%clk 0:00:53]} 19. Rab1 {[%clk 0:00:50]}  b6 {[%clk 0:00:41]} 20. Qe3 {[%clk 0:00:46]}  Rhg8 {[%clk 0:00:35]} 21. Rdc1 {[%clk 0:00:44]}  g5 {[%clk 0:00:35]} 22. Nd4 {[%clk 0:00:41]}  h5 {[%clk 0:00:25]} 23. Rb2 {[%clk 0:00:37]}  Bd7 {[%clk 0:00:21]} 24. Rcb1 {[%clk 0:00:37]}  Na4 {[%clk 0:00:21]} 25. Rb4 {[%clk 0:00:31]}  a5 {[%clk 0:00:18]} 26. Nb5 {[%clk 0:00:27]}  Bxb5 {[%clk 0:00:17]} 27. Rxb5 {[%clk 0:00:28]}  Nd7 {[%clk 0:00:17]} 28. c5 {[%clk 0:00:10]}  Ndxc5 {[%clk 0:00:15]} 29. Bxc5 {[%clk 0:00:09]}  dxc5 {[%clk 0:00:14]} 30. R5b3 {[%clk 0:00:08]}  c4 {[%clk 0:00:12]} 31. Rb5 {[%clk 0:00:06]}  g4 {[%clk 0:00:10]} 32. Rxb6 {[%clk 0:00:05]}  Nxb6 {[%clk 0:00:10]} 33. Rxb6 {[%clk 0:00:06]}  gxf3 {[%clk 0:00:10]} 34. Bxf3 {[%clk 0:00:07]}  Rd1+ {[%clk 0:00:10]} 35. Bxd1 {[%clk 0:00:06]}  Rd8 {[%clk 0:00:08]} 36. Bf3 {[%clk 0:00:06]}  Rd3 {[%clk 0:00:07]} 37. Qf2 {[%clk 0:00:05]}  Rxc3 {[%clk 0:00:06]} 38. g3 {[%clk 0:00:05]}  Rc1+ {[%clk 0:00:06]} 39. Kg2 {[%clk 0:00:06]}  c3 {[%clk 0:00:05]} 40. e5 {[%clk 0:00:06]}  c2 {[%clk 0:00:04]} 41. Rc6 {[%clk 0:00:06]}  Qxc6 {[%clk 0:00:03]} 42. Bxc6 {[%clk 0:00:07]}  Rb1 {[%clk 0:00:01]} 43. Qa7 {[%clk 0:00:04]}  c1=Q {[%clk 0:00:01]} 44. Qd7+ {[%clk 0:00:05]}  Kb8 {[%clk 0:00:01]} 45. Qd8+ {[%clk 0:00:05]}  Ka7 {[%clk 0:00:01]} 46. Qa8+ {[%clk 0:00:04]}  Kb6 {[%clk 0:00:02]} 47. Qb7+ {[%clk 0:00:05]}  Kc5 {[%clk 0:00:02]} 48. Be4 {[%clk 0:00:04]}  Rxb7 {[%clk 0:00:01]} 0-1


[Site "https://www.chess.com"]

[Event "Titled Tuesday Blitz June 21 Late 2022"]
[White "Sargsyan, Anna M."]
[Black "Gimenez Aguirre, Alejo Ismael"]
[WhiteFideId "13308130"]
[BlackFideId "32041667"]
[WhiteElo "2271"]
[BlackElo "2031"]
[Result "1-0"]
[Round "03"]
[TimeControl "180+1"]
[Date "2022.06.22"]
[WhiteClock "0:00:48"]
[BlackClock "0:00:29"]

1. d4 {[%clk 0:03:00]}  Nf6 {[%clk 0:02:59]} 2. c4 {[%clk 0:03:01]}  e6 {[%clk 0:02:59]} 3. Nf3 {[%clk 0:03:01]}  Bb4+ {[%clk 0:02:58]} 4. Bd2 {[%clk 0:03:01]}  a5 {[%clk 0:02:56]} 5. g3 {[%clk 0:03:01]}  b6 {[%clk 0:02:56]} 6. Bg2 {[%clk 0:03:01]}  Bb7 {[%clk 0:02:56]} 7. O-O {[%clk 0:03:00]}  O-O {[%clk 0:02:56]} 8. Bf4 {[%clk 0:02:58]}  d5 {[%clk 0:02:54]} 9. c5 {[%clk 0:02:57]}  a4 {[%clk 0:02:53]} 10. a3 {[%clk 0:02:57]}  Ba5 {[%clk 0:02:53]} 11. Qxa4 {[%clk 0:02:53]}  bxc5 {[%clk 0:02:52]} 12. dxc5 {[%clk 0:02:49]}  c6 {[%clk 0:02:49]} 13. Qc2 {[%clk 0:02:42]}  Nbd7 {[%clk 0:02:47]} 14. Nbd2 {[%clk 0:02:36]}  Re8 {[%clk 0:02:44]} 15. b4 {[%clk 0:02:31]}  Bc7 {[%clk 0:02:43]} 16. Bxc7 {[%clk 0:02:31]}  Qxc7 {[%clk 0:02:44]} 17. e4 {[%clk 0:02:31]}  Ra7 {[%clk 0:02:35]} 18. exd5 {[%clk 0:02:28]}  exd5 {[%clk 0:02:35]} 19. Nb3 {[%clk 0:02:19]}  Ne4 {[%clk 0:02:26]} 20. Rfe1 {[%clk 0:02:17]}  Rea8 {[%clk 0:02:22]} 21. Qb2 {[%clk 0:02:16]}  Ba6 {[%clk 0:02:16]} 22. Nfd2 {[%clk 0:02:10]}  Nxd2 {[%clk 0:02:12]} 23. Nxd2 {[%clk 0:02:07]}  Nf6 {[%clk 0:02:04]} 24. a4 {[%clk 0:01:50]}  Rb8 {[%clk 0:02:00]} 25. Qc3 {[%clk 0:01:38]}  h5 {[%clk 0:01:58]} 26. Nb3 {[%clk 0:01:32]}  h4 {[%clk 0:01:53]} 27. Nd4 {[%clk 0:01:32]}  Bc4 {[%clk 0:01:48]} 28. Nf5 {[%clk 0:01:25]}  hxg3 {[%clk 0:01:45]} 29. hxg3 {[%clk 0:01:24]}  Rba8 {[%clk 0:01:21]} 30. Re7 {[%clk 0:01:17]}  Qd8 {[%clk 0:01:16]} 31. Rae1 {[%clk 0:00:58]}  Rxa4 {[%clk 0:01:08]} 32. Nh6+ {[%clk 0:00:58]}  Kh7 {[%clk 0:00:35]} 33. Nxf7 {[%clk 0:00:56]}  Qc8 {[%clk 0:00:33]} 34. Ng5+ {[%clk 0:00:54]}  Kg6 {[%clk 0:00:32]} 35. Qc2+ {[%clk 0:00:49]}  Kxg5 {[%clk 0:00:29]} 36. Rxg7+ {[%clk 0:00:48]} 1-0


[Site "https://www.chess.com"]

[Event "Titled Tuesday Blitz June 21 Late 2022"]
[White "Sarkar, Justin"]
[Black "Johnson, Ben"]
[WhiteFideId "2010011"]
[BlackFideId "2010917"]
[WhiteElo "2020"]
[BlackElo "2150"]
[Result "1/2-1/2"]
[Round "03"]
[TimeControl "180+1"]
[Date "2022.06.22"]
[WhiteClock "0:00:04"]
[BlackClock "0:00:19"]

1. e4 {[%clk 0:03:00]}  c5 {[%clk 0:02:59]} 2. Nc3 {[%clk 0:02:59]}  Nc6 {[%clk 0:02:59]} 3. Nf3 {[%clk 0:02:58]}  e5 {[%clk 0:02:58]} 4. Bc4 {[%clk 0:02:57]}  Be7 {[%clk 0:02:57]} 5. d3 {[%clk 0:02:54]}  d6 {[%clk 0:02:57]} 6. O-O {[%clk 0:02:49]}  Nf6 {[%clk 0:02:57]} 7. Ng5 {[%clk 0:02:46]}  O-O {[%clk 0:02:56]} 8. f4 {[%clk 0:02:45]}  exf4 {[%clk 0:02:49]} 9. Bxf4 {[%clk 0:02:41]}  Bg4 {[%clk 0:02:48]} 10. Qd2 {[%clk 0:02:34]}  Nd4 {[%clk 0:02:41]} 11. Nf3 {[%clk 0:01:33]}  Nxf3+ {[%clk 0:02:22]} 12. gxf3 {[%clk 0:01:33]}  Be6 {[%clk 0:02:21]} 13. Bg5 {[%clk 0:00:27]}  a6 {[%clk 0:02:17]} 14. a4 {[%clk 0:00:21]}  b6 {[%clk 0:02:10]} 15. Rab1 {[%clk 0:00:18]}  Nh5 {[%clk 0:01:54]} 16. Bxe7 {[%clk 0:00:13]}  Qxe7 {[%clk 0:01:55]} 17. Nd5 {[%clk 0:00:11]}  Bxd5 {[%clk 0:01:46]} 18. Bxd5 {[%clk 0:00:11]}  Rab8 {[%clk 0:01:47]} 19. f4 {[%clk 0:00:09]}  Rfd8 {[%clk 0:01:30]} 20. f5 {[%clk 0:00:09]}  Nf6 {[%clk 0:01:30]} 21. c4 {[%clk 0:00:07]}  Nxd5 {[%clk 0:01:29]} 22. cxd5 {[%clk 0:00:07]}  f6 {[%clk 0:01:28]} 23. Kh1 {[%clk 0:00:06]}  b5 {[%clk 0:01:27]} 24. axb5 {[%clk 0:00:04]}  Rxb5 {[%clk 0:01:19]} 25. Rg1 {[%clk 0:00:04]}  Rdb8 {[%clk 0:01:11]} 26. Rg4 {[%clk 0:00:04]}  R8b7 {[%clk 0:00:56]} 27. Rbg1 {[%clk 0:00:01]}  Rxb2 {[%clk 0:00:52]} 28. Rxg7+ {[%clk 0:00:01]}  Qxg7 {[%clk 0:00:52]} 29. Rxg7+ {[%clk 0:00:01]}  Kxg7 {[%clk 0:00:53]} 30. Qe3 {[%clk 0:00:01]}  Rb1+ {[%clk 0:00:52]} 31. Kg2 {[%clk 0:00:01]}  R7b2+ {[%clk 0:00:53]} 32. Kg3 {[%clk 0:00:02]}  a5 {[%clk 0:00:51]} 33. Qf4 {[%clk 0:00:02]}  Rg1+ {[%clk 0:00:41]} 34. Kh3 {[%clk 0:00:02]}  Rbg2 {[%clk 0:00:27]} 35. Qxd6 {[%clk 0:00:02]}  Rg5 {[%clk 0:00:24]} 36. Qe7+ {[%clk 0:00:02]}  Kg8 {[%clk 0:00:21]} 37. Qe8+ {[%clk 0:00:02]}  Kg7 {[%clk 0:00:22]} 38. Qe7+ {[%clk 0:00:03]}  Kg8 {[%clk 0:00:19]} 39. Qe8+ {[%clk 0:00:03]}  Kg7 {[%clk 0:00:19]} 40. Qe7+ {[%clk 0:00:04]} 1/2-1/2


[Site "https://www.chess.com"]

[Event "Titled Tuesday Blitz June 21 Late 2022"]
[White "Shohat, Yotam"]
[Black "Souleidis, Georgios"]
[WhiteFideId "2813955"]
[BlackFideId "4206827"]
[WhiteElo "2119"]
[BlackElo "2401"]
[Result "1-0"]
[Round "03"]
[TimeControl "180+1"]
[Date "2022.06.22"]
[WhiteClock "0:00:05"]
[BlackClock "0:00:03"]

1. d4 {[%clk 0:03:00]}  Nf6 {[%clk 0:02:58]} 2. c4 {[%clk 0:02:59]}  g6 {[%clk 0:02:58]} 3. Nc3 {[%clk 0:02:57]}  Bg7 {[%clk 0:02:59]} 4. e4 {[%clk 0:02:54]}  d6 {[%clk 0:02:59]} 5. Nf3 {[%clk 0:02:53]}  O-O {[%clk 0:02:59]} 6. Be2 {[%clk 0:02:52]}  e5 {[%clk 0:03:00]} 7. d5 {[%clk 0:02:52]}  a5 {[%clk 0:03:00]} 8. Be3 {[%clk 0:02:47]}  Ng4 {[%clk 0:02:59]} 9. Bg5 {[%clk 0:02:47]}  f6 {[%clk 0:02:58]} 10. Bd2 {[%clk 0:02:47]}  f5 {[%clk 0:02:57]} 11. exf5 {[%clk 0:02:43]}  gxf5 {[%clk 0:02:57]} 12. h3 {[%clk 0:02:41]}  Nf6 {[%clk 0:02:57]} 13. Ng5 {[%clk 0:02:39]}  Qe7 {[%clk 0:02:50]} 14. g4 {[%clk 0:02:37]}  Na6 {[%clk 0:02:40]} 15. Qc2 {[%clk 0:02:09]}  e4 {[%clk 0:02:16]} 16. O-O-O {[%clk 0:01:46]}  Nc5 {[%clk 0:02:09]} 17. Be3 {[%clk 0:01:24]}  b6 {[%clk 0:01:54]} 18. Rhg1 {[%clk 0:01:08]}  Kh8 {[%clk 0:01:53]} 19. Bd4 {[%clk 0:00:37]}  h6 {[%clk 0:01:34]} 20. Ne6 {[%clk 0:00:36]}  Nxe6 {[%clk 0:01:34]} 21. dxe6 {[%clk 0:00:34]}  Bxe6 {[%clk 0:01:35]} 22. gxf5 {[%clk 0:00:34]}  Bxf5 {[%clk 0:01:35]} 23. Nd5 {[%clk 0:00:32]}  Qf7 {[%clk 0:00:40]} 24. Rxg7 {[%clk 0:00:30]}  Qxg7 {[%clk 0:00:41]} 25. Qc3 {[%clk 0:00:29]}  Qg5+ {[%clk 0:00:29]} 26. Be3 {[%clk 0:00:28]}  Qg6 {[%clk 0:00:25]} 27. Ne7 {[%clk 0:00:12]}  Qh7 {[%clk 0:00:22]} 28. Nd5 {[%clk 0:00:12]}  Qg6 {[%clk 0:00:20]} 29. Bd4 {[%clk 0:00:11]}  Qg5+ {[%clk 0:00:19]} 30. Qe3 {[%clk 0:00:10]}  Kg7 {[%clk 0:00:14]} 31. Nxc7 {[%clk 0:00:03]}  Rac8 {[%clk 0:00:11]} 32. Nd5 {[%clk 0:00:03]}  Rf7 {[%clk 0:00:10]} 33. h4 {[%clk 0:00:02]}  Qxe3+ {[%clk 0:00:10]} 34. fxe3 {[%clk 0:00:03]}  Bg6 {[%clk 0:00:08]} 35. Rg1 {[%clk 0:00:03]}  h5 {[%clk 0:00:07]} 36. b3 {[%clk 0:00:03]}  Kh6 {[%clk 0:00:06]} 37. Nxf6 {[%clk 0:00:02]}  Rcf8 {[%clk 0:00:06]} 38. Nd5 {[%clk 0:00:02]}  Rf2 {[%clk 0:00:06]} 39. Nf4 {[%clk 0:00:02]}  Rxe2 {[%clk 0:00:04]} 40. Rxg6+ {[%clk 0:00:01]}  Kh7 {[%clk 0:00:04]} 41. Rg7+ {[%clk 0:00:02]}  Kh6 {[%clk 0:00:04]} 42. Rg6+ {[%clk 0:00:03]}  Kh7 {[%clk 0:00:04]} 43. Rxd6 {[%clk 0:00:03]}  Rxa2 {[%clk 0:00:03]} 44. Rd7+ {[%clk 0:00:03]}  Kh6 {[%clk 0:00:04]} 45. Bg7+ {[%clk 0:00:03]}  Kh7 {[%clk 0:00:03]} 46. Bxf8+ {[%clk 0:00:04]}  Kg8 {[%clk 0:00:04]} 47. Bd6 {[%clk 0:00:04]}  Rh2 {[%clk 0:00:04]} 48. Be5 {[%clk 0:00:03]}  Rxh4 {[%clk 0:00:04]} 49. Rg7+ {[%clk 0:00:03]}  Kf8 {[%clk 0:00:03]} 50. Ng6+ {[%clk 0:00:04]}  Ke8 {[%clk 0:00:03]} 51. Nxh4 {[%clk 0:00:05]} 1-0


[Site "https://www.chess.com"]

[Event "Titled Tuesday Blitz June 21 Late 2022"]
[White "Shuvalova, Polina"]
[Black "Nilsson, Joakim"]
[WhiteFideId "24171760"]
[BlackFideId "1723383"]
[WhiteElo "2330"]
[BlackElo "2210"]
[Result "0-1"]
[Round "03"]
[TimeControl "180+1"]
[Date "2022.06.22"]
[WhiteClock "0:01:19"]
[BlackClock "0:01:50"]

1. a3 {[%clk 0:03:00]}  e5 {[%clk 0:02:58]} 2. b4 {[%clk 0:03:00]}  d5 {[%clk 0:02:58]} 3. Bb2 {[%clk 0:03:00]}  Bd6 {[%clk 0:02:57]} 4. Nf3 {[%clk 0:03:00]}  Nd7 {[%clk 0:02:55]} 5. g3 {[%clk 0:02:58]}  c6 {[%clk 0:02:54]} 6. Bg2 {[%clk 0:02:59]}  Ngf6 {[%clk 0:02:54]} 7. d3 {[%clk 0:02:59]}  O-O {[%clk 0:02:54]} 8. Nbd2 {[%clk 0:02:59]}  Re8 {[%clk 0:02:55]} 9. O-O {[%clk 0:02:59]}  a5 {[%clk 0:02:54]} 10. bxa5 {[%clk 0:02:57]}  Qxa5 {[%clk 0:02:53]} 11. c4 {[%clk 0:02:55]}  Qd8 {[%clk 0:02:46]} 12. Qc2 {[%clk 0:02:47]}  Qe7 {[%clk 0:02:44]} 13. Rfe1 {[%clk 0:02:46]}  e4 {[%clk 0:02:43]} 14. dxe4 {[%clk 0:02:44]}  dxe4 {[%clk 0:02:43]} 15. Ng5 {[%clk 0:02:42]}  e3 {[%clk 0:02:34]} 16. Nf1 {[%clk 0:02:11]}  exf2+ {[%clk 0:02:27]} 17. Kxf2 {[%clk 0:02:09]}  Ng4+ {[%clk 0:02:27]} 18. Kg1 {[%clk 0:01:39]}  Bc5+ {[%clk 0:02:25]} 19. e3 {[%clk 0:01:34]}  Qxg5 {[%clk 0:02:24]} 20. Kh1 {[%clk 0:01:30]}  Nde5 {[%clk 0:02:15]} 21. Rad1 {[%clk 0:01:28]}  Bf5 {[%clk 0:02:03]} 22. Qe2 {[%clk 0:01:25]}  Rad8 {[%clk 0:02:00]} 23. h3 {[%clk 0:01:24]}  Rxd1 {[%clk 0:01:52]} 24. Qxd1 {[%clk 0:01:19]}  Nf2+ {[%clk 0:01:50]} 0-1


[Site "https://www.chess.com"]

[Event "Titled Tuesday Blitz June 21 Late 2022"]
[White "Sturt, Raven"]
[Black "Remolar Gallen, Jose"]
[WhiteFideId "2007304"]
[BlackFideId "2215187"]
[WhiteElo "2398"]
[BlackElo "2205"]
[Result "1-0"]
[Round "03"]
[TimeControl "180+1"]
[Date "2022.06.22"]
[WhiteClock "0:00:37"]
[BlackClock "0:00:02"]

1. d4 {[%clk 0:03:00]}  Nf6 {[%clk 0:02:58]} 2. c4 {[%clk 0:03:00]}  g6 {[%clk 0:02:58]} 3. Nc3 {[%clk 0:02:58]}  Bg7 {[%clk 0:02:58]} 4. e4 {[%clk 0:02:58]}  d6 {[%clk 0:02:59]} 5. h3 {[%clk 0:02:58]}  O-O {[%clk 0:02:58]} 6. Be3 {[%clk 0:02:57]}  e5 {[%clk 0:02:54]} 7. d5 {[%clk 0:02:57]}  Na6 {[%clk 0:02:55]} 8. g4 {[%clk 0:02:49]}  Nc5 {[%clk 0:02:53]} 9. f3 {[%clk 0:02:48]}  a5 {[%clk 0:02:51]} 10. Qd2 {[%clk 0:02:45]}  Nfd7 {[%clk 0:02:39]} 11. h4 {[%clk 0:02:31]}  f5 {[%clk 0:02:35]} 12. O-O-O {[%clk 0:02:24]}  f4 {[%clk 0:02:31]} 13. Bf2 {[%clk 0:02:24]}  h6 {[%clk 0:02:25]} 14. Kb1 {[%clk 0:02:23]}  Rf7 {[%clk 0:02:00]} 15. Nge2 {[%clk 0:02:22]}  Bf8 {[%clk 0:01:57]} 16. Nc1 {[%clk 0:02:21]}  Nb6 {[%clk 0:01:41]} 17. b3 {[%clk 0:02:19]}  Bd7 {[%clk 0:01:33]} 18. Nd3 {[%clk 0:02:11]}  Nxd3 {[%clk 0:01:32]} 19. Bxd3 {[%clk 0:02:12]}  Be8 {[%clk 0:01:13]} 20. Be2 {[%clk 0:02:05]}  Nd7 {[%clk 0:01:12]} 21. Na4 {[%clk 0:01:39]}  b6 {[%clk 0:01:10]} 22. Rdg1 {[%clk 0:01:34]}  Nc5 {[%clk 0:01:09]} 23. Nxc5 {[%clk 0:01:26]}  bxc5 {[%clk 0:01:07]} 24. a4 {[%clk 0:01:24]}  Qb8 {[%clk 0:01:07]} 25. Ka2 {[%clk 0:01:23]}  Rd7 {[%clk 0:00:52]} 26. g5 {[%clk 0:01:15]}  h5 {[%clk 0:00:52]} 27. Bf1 {[%clk 0:01:15]}  Rd8 {[%clk 0:00:51]} 28. Qc3 {[%clk 0:01:12]}  Qb6 {[%clk 0:00:46]} 29. Be1 {[%clk 0:01:05]}  Rdb8 {[%clk 0:00:46]} 30. Rh2 {[%clk 0:01:04]}  Rb7 {[%clk 0:00:20]} 31. Rb2 {[%clk 0:01:02]}  Rab8 {[%clk 0:00:17]} 32. Rgg2 {[%clk 0:01:02]}  Ra7 {[%clk 0:00:15]} 33. Rgc2 {[%clk 0:00:58]}  Qa6 {[%clk 0:00:14]} 34. Bh3 {[%clk 0:00:58]}  Rb4 {[%clk 0:00:13]} 35. Be6+ {[%clk 0:00:57]}  Kg7 {[%clk 0:00:13]} 36. Qd3 {[%clk 0:00:56]}  Rb8 {[%clk 0:00:12]} 37. Qf1 {[%clk 0:00:54]}  Rab7 {[%clk 0:00:11]} 38. Qh3 {[%clk 0:00:54]}  Bxa4 {[%clk 0:00:10]} 39. Bc8 {[%clk 0:00:38]}  Bxb3+ {[%clk 0:00:02]} 40. Rxb3 {[%clk 0:00:37]} 1-0


[Site "https://www.chess.com"]

[Event "Titled Tuesday Blitz June 21 Late 2022"]
[White "Suder, Jakub"]
[Black "Barria Santos, Jose Guilherme"]
[WhiteFideId "1195310"]
[BlackFideId "1939300"]
[WhiteElo "2058"]
[BlackElo "2261"]
[Result "1/2-1/2"]
[Round "03"]
[TimeControl "180+1"]
[Date "2022.06.22"]
[WhiteClock "0:00:11"]
[BlackClock "0:00:08"]

1. d4 {[%clk 0:03:00]}  Nf6 {[%clk 0:02:57]} 2. c4 {[%clk 0:03:01]}  e6 {[%clk 0:02:50]} 3. Nc3 {[%clk 0:03:01]}  Bb4 {[%clk 0:02:49]} 4. f3 {[%clk 0:03:01]}  c5 {[%clk 0:02:48]} 5. d5 {[%clk 0:03:02]}  O-O {[%clk 0:02:48]} 6. e4 {[%clk 0:03:01]}  b5 {[%clk 0:02:49]} 7. e5 {[%clk 0:03:01]}  Ne8 {[%clk 0:02:49]} 8. f4 {[%clk 0:03:01]}  d6 {[%clk 0:02:45]} 9. Nf3 {[%clk 0:03:02]}  dxe5 {[%clk 0:02:45]} 10. fxe5 {[%clk 0:03:01]}  exd5 {[%clk 0:02:42]} 11. cxd5 {[%clk 0:03:01]}  Nc7 {[%clk 0:02:38]} 12. d6 {[%clk 0:02:48]}  Ne6 {[%clk 0:02:35]} 13. Bd3 {[%clk 0:02:45]}  Bb7 {[%clk 0:02:27]} 14. O-O {[%clk 0:02:45]}  c4 {[%clk 0:02:26]} 15. Be4 {[%clk 0:02:44]}  Qb6+ {[%clk 0:02:20]} 16. Kh1 {[%clk 0:02:44]}  Bxc3 {[%clk 0:01:59]} 17. Bxb7 {[%clk 0:02:43]}  Qxb7 {[%clk 0:02:00]} 18. bxc3 {[%clk 0:02:43]}  Nd7 {[%clk 0:01:58]} 19. Be3 {[%clk 0:02:34]}  Qe4 {[%clk 0:01:44]} 20. Bd4 {[%clk 0:02:30]}  Nxd4 {[%clk 0:01:36]} 21. cxd4 {[%clk 0:02:30]}  c3 {[%clk 0:01:32]} 22. Re1 {[%clk 0:02:30]}  Qd5 {[%clk 0:01:11]} 23. Qd3 {[%clk 0:02:27]}  Rac8 {[%clk 0:01:08]} 24. Ng5 {[%clk 0:02:27]}  g6 {[%clk 0:01:05]} 25. Qh3 {[%clk 0:02:26]}  Nf6 {[%clk 0:01:05]} 26. Qh4 {[%clk 0:02:06]}  Nh5 {[%clk 0:01:01]} 27. Ne4 {[%clk 0:02:07]}  Kh8 {[%clk 0:00:51]} 28. Rac1 {[%clk 0:01:36]}  Qxd4 {[%clk 0:00:51]} 29. g4 {[%clk 0:01:28]}  Ng7 {[%clk 0:00:47]} 30. Nf6 {[%clk 0:01:13]}  h5 {[%clk 0:00:37]} 31. Qg5 {[%clk 0:01:09]}  Qd2 {[%clk 0:00:33]} 32. Re3 {[%clk 0:00:50]}  Qxc1+ {[%clk 0:00:33]} 33. Kg2 {[%clk 0:00:50]}  Qd2+ {[%clk 0:00:24]} 34. Kg3 {[%clk 0:00:50]}  h4+ {[%clk 0:00:19]} 35. Kh3 {[%clk 0:00:49]}  Nf5 {[%clk 0:00:13]} 36. gxf5 {[%clk 0:00:50]}  Kg7 {[%clk 0:00:09]} 37. Nh5+ {[%clk 0:00:41]}  Kh7 {[%clk 0:00:09]} 38. fxg6+ {[%clk 0:00:41]}  fxg6 {[%clk 0:00:10]} 39. Qe7+ {[%clk 0:00:41]}  Kh6 {[%clk 0:00:09]} 40. Qg7+ {[%clk 0:00:42]}  Kg5 {[%clk 0:00:07]} 41. Qe7+ {[%clk 0:00:40]}  Kh6 {[%clk 0:00:07]} 42. Qg7+ {[%clk 0:00:20]}  Kg5 {[%clk 0:00:08]} 43. Qe7+ {[%clk 0:00:11]}  Kh6 {[%clk 0:00:08]} 1/2-1/2


[Site "https://www.chess.com"]